Workbook

Sheet CDS-A
A1: A. General Information
A3: A0 | B3: Respondent Information (Not for Publication)
B4: Name: | D4: Adam Johnson
B5: Title: | D5: Director of Institutional Research
B6: Office: | D6: Office of Institutional Research & Assessment
B7: Mailing Address: | D7: 1600 Grand Avenue
B8: City/State/Zip/Country: | D8: St. Paul, MN 55105 USA
B9: Phone: | D9: 651.696.6411
B10: Fax:
B11: E-mail Address: | D11: ajohns31@macalester.edu
B13: Are your responses to the CDS posted for reference on your institution's Web site? | C13: x | D13: Yes
D14: No
B16: If yes, please provide the URL of the corresponding Web page:
B17: https://www.macalester.edu/institutional-research/institutionaldata/
A19: A0A | B19: We invite you to indicate if there are items on the CDS for which you cannot use the requested analytic convention, cannot provide data for the cohort requested, whose methodology is unclear, or about which you have questions or comments in general. This information will not be published but will help the publishers further refine CDS items.
A22: A1 | B22: Address Information
B23: Name of College/University: | D23: Macalester College
B24: Mailing Address: | D24: 1600 Grand Avenue
B25: City/State/Zip/Country: | D25: Saint Paul, MN 55105 USA
B26: Street Address (if different):
B27: City/State/Zip/Country:
B28: Main Phone Number: | D28: 6516966000
B29: WWW Home Page Address: | D29: www.macalester.edu
B30: Admissions Phone Number: | D30: 651-696-6357
B31: Admissions Toll-Free Phone Number: | D31: 1-800-231-7974
B32: Admissions Office Mailing Address: | D32: 1600 Grand Avenue
B33: City/State/Zip/Country: | D33: Saint Paul, MN 55105 USA
B34: Admissions E-mail Address: | D34: admissions@macalester.edu
B35: If there is a separate URL for your school’s online application, please specify:
B36: https://www.macalester.edu/admissions/apply/
B37: If you have a mailing address other than the above to which applications should be sent, please provide:
A40: A2 | B40: Source of institutional control (Check only one):
B42: Public
A43: x | B43: Private (nonprofit)
B44: Proprietary
A46: A3 | B46: Classify your undergraduate institution:
A48: x | B48: Coeducational college
B49: Men's college
B50: Women's college
A52: A4 | B52: Academic year calendar:
A54: x | B54: Semester
B55: Quarter
B56: Trimester
B57: 4-1-4
B58: Continuous
B59: Differs by program (describe):
B62: Other (describe):
A64: A5 | B64: Degrees offered by your institution:
B66: Certificate
B67: Diploma
B68: Associate
B69: Transfer Associate
B70: Terminal Associate
A71: x | B71: Bachelor's
B72: Postbachelor's certificate
B73: Master's
B74: Post-master's certificate
B75: Doctoral degree research/scholarship
B76: Doctoral degree – professional practice
B77: Doctoral degree -- other
A78: A5 | B78: Doctoral degree -- other
A79: A6 | B79: Diversity, Equity, and Inclusion
B81: If you have a diversity, equity, and inclusion office or department, please provide the URL of the corresponding Web page:
B82: https://www.macalester.edu/equity/

Sheet CDS-B
A1: B. ENROLLMENT AND PERSISTENCE
A3: B1 | B3: Institutional Enrollment - Men and Women
B4: Provide numbers of students for each of the following categories as of the institution's official fall reporting date or as of October 15, 2024.
B5: • Note: Report students formerly designated as “first professional” in the graduate cells.
B6: • For information on reporting study abroad students please see: https://nces.ed.gov/ipeds/pdf/Reporting_Study_Abroad_Students.pdf
B7: • If your institution collects and reports non-binary gender data, please use the "Another Gender" category.
B8: • In cases where gender information is not provided, please distribute across the two-binary categories.
B9: • Dual Enrollment: If your institution enrolls high school students in college courses for credit either within a dual enrollment program or outside of a dual enrollment program, you may report the unduplicated count as part of the full- or part-time “All other undergraduates” section.
B10: Undergraduate Students: Full-Time | C10: Men | D10: Women | E10: Another Gender | F10: Unknown
B11: Degree-seeking, first-time first-year students | C11: 240 | D11: 289 | E11: 31 | F11: 0
B12: Other first-year, degree-seeking | C12: 5 | D12: 10 | E12: 4 | F12: 0
B13: All other degree-seeking | C13: 633 | D13: 808 | E13: 79 | F13: 0
B14: Total degree-seeking | C14: =SUM(C11:C13) -> 878 | D14: 1,107 | E14: 114 | F14: =SUM(F11:F13) -> 0
B15: All other undergraduates enrolled in credit courses | C15: 1 | D15: 6
B16: Total undergraduate Full-Time Students | C16: =SUM(C14:C15) -> 879 | D16: =SUM(D14:D15) -> 1,113 | E16: 114 | F16: =SUM(F14:F15) -> 0
B18: Undergraduate Students: Part-Time | C18: Men | D18: Women | E18: Another Gender | F18: Unknown
B19: Degree-seeking, first-time first-year students | C19: 0 | D19: 0 | E19: 0 | F19: 0
B20: Other first-year, degree-seeking | C20: 0 | D20: 0 | E20: 0 | F20: 0
B21: All other degree-seeking | C21: 13 | D21: 11 | E21: 8 | F21: 0
B22: Total degree-seeking | C22: =SUM(C19:C21) -> 13 | D22: 11 | E22: 8 | F22: =SUM(F19:F21) -> 0
B23: All other undergraduates enrolled in credit courses
B24: Total undergraduate Part-Time Students | C24: =SUM(C22:C23) -> 13 | D24: 11 | E24: 8 | F24: =SUM(F22:F23) -> 0
B26: Undergraduate Students: All | C26: Men | D26: Women | E26: Another Gender | F26: Unknown
B27: Total undergraduate Students | C27: 892 | D27: 1,124 | E27: 122 | F27: 0
B29: Graduate Students: Full-Time
B30: Degree-seeking, first-time
B31: All other degree-seeking
B32: All other graduates enrolled in credit courses
B33: Total graduate Full-Time Students | C33: =SUM(C30:C32) -> 0 | D33: 0 | E33: 0 | F33: =SUM(F30:F32) -> 0
B35: Graduate Students: Part-Time
B36: Degree-seeking, first-time
B37: All other degree-seeking
B38: All other graduates enrolled in credit courses
B39: Total graduate Part-Time Students | C39: =SUM(C36:C38) -> 0 | D39: 0 | E39: 0 | F39: =SUM(F36:F38) -> 0
B41: Graduate Students: All | C41: Men | D41: Women | E41: Another Gender | F41: Unknown
B42: Total Graduate Students
B44: All Students: Total | C44: Men | D44: Women | E44: Another Gender | F44: Unknown
B45: Total all students | C45: 892 | D45: 1,124 | E45: 122 | F45: =SUM(F16, F33) -> 0
B47: Total all undergraduates | C47: =SUM(C27:E27) -> 2,138
B48: Total all graduate | C48: =SUM(C42:E42) -> 0
B49: GRAND TOTAL ALL STUDENTS | C49: =SUM(C47:C48) -> 2,138
A50: B2 | B50: Enrollment by Racial/Ethnic Category.
B51: Provide numbers of undergraduate students for each of the following categories as of the institution’s official fall reporting date or as of October 15, 2024.
B52: • Include international students only in the category "Nonresidents."
B53: • Complete the “Total Undergraduates” column only if you cannot provide data for the first two columns.
B54: • Report as your institution reports to IPEDS: persons who are Hispanic should be reported only on the Hispanic line, not under any race, and persons who are non-Hispanic multi-racial should be reported only under "Two or more races."
B55: • New guidance from IPEDS for reporting aggregate data:
B56: Racial/ethnic designations are requested only for United States citizens, residents, and other eligible non-citizens. Eligible non-citizens include all students who completed high school or a GED equivalency within the United States (including DACA and undocumented students) and who were not on an F-1 non-immigrant student visa at the time of high school graduation.
B57: More information about other eligible (for financial aid purposes) non-citizens is available at https://studentaid.gov/understandaid/eligibility/requirements/non-us-citizens.
B58: Nonresident - A person who is not a citizen or national of the United States and who is in this country on a student visa or temporary basis and does not have the right to remain indefinitely. Do not include DACA, undocumented, or other eligible noncitizens in this category.
B59: NOTE - Nonresidents are to be reported separately, in the boxes provided, rather than included in any of the seven racial/ethnic categories or in race/ethnicity unknown.
B60: Dual Enrollment: If your institution enrolls high school students in college courses for credit either within a dual enrollment program or outside of a dual enrollment program, you may report the unduplicated count as part of the non-degree-seeking students included in the “Total Undergraduates (both degree & non-degree-seeking)” section.
D61: Degree-Seeking First-Time First Year | E61: Degree-Seeking Undergraduates (include first-time first-year) | F61: Total Undergraduates (both degree & non-degree-seeking)
B62: Nonresidents | D62: 117 | E62: 314 | F62: 321
B63: Hispanic/Latino | D63: 48 | E63: 232 | F63: 232
B64: Black or African American, non-Hispanic | D64: 34 | E64: 133 | F64: 133
B65: White, non-Hispanic | D65: 254 | E65: 1,067 | F65: 1,067
B66: American Indian or Alaska Native, non-Hispanic | D66: 1 | E66: 2 | F66: 2
B67: Asian, non-Hispanic | D67: 46 | E67: 169 | F67: 169
B68: Native Hawaiian or other Pacific Islander, non-Hispanic | D68: 2 | E68: 6 | F68: 6
B69: Two or more races, non-Hispanic | D69: 46 | E69: 188 | F69: 188
B70: Race and/or ethnicity unknown | D70: 12 | E70: 20 | F70: 20
B71: TOTAL | D71: 560 | E71: 2,131 | F71: 2,138
B73: Persistence
A74: B3 | B74: Number of degrees awarded by your institution from July 1, 2023, to June 30, 2024.
B75: Certificate/diploma
B76: Associate degrees
B77: Bachelor's degrees | C77: 513
B78: Postbachelor's certificates
B79: Master's degrees
B80: Post-Master's certificates
B81: Doctoral degrees – research/scholarship
B82: Doctoral degrees – professional practice
B83: Doctoral degrees – other
B84: B4-B21: Graduation Rates
B85: The items in this section correspond to data elements collected by the IPEDS Web-based Data Collection System’s Graduation Rate Survey (GRS).
B86: • For complete instructions and definitions of data elements, see the IPEDS GRS Forms and Instructions for the 2024-2025 Survey. https://nces.ed.gov/ipeds/use-the-data/survey-components/9/graduation-rates
B87: In the following section for bachelor’s or equivalent programs, please disaggregate the Fall 2017 and Fall 2018 cohorts (formerly CDS B4-B11) into four groups: • Students who received a Federal Pell Grant* • Recipients of a subsidized Stafford Loan who did not receive a Pell Grant • Students who did not receive either a Pell Grant or a subsidized Stafford Loan • Total (all students, regardless of Pell Grant or subsidized loan status) *Students who received both a Federal Pell Grant and a subsidized Stafford Loan should be reported in the "Recipients of a Federal Pell Grant" column. For each graduation rate grid below, the numbers in the first three columns for Questions A-G should sum to the cohort total in the fourth column (formerly CDS B4-B11).
B90: For Bachelor’s or Equivalent Programs
B91: Please provide data for the Fall 2018 cohort if available. If Fall 2018 cohort data are not available, provide data for the Fall 2017 cohort.
B92: Fall 2018 Cohort
C93: Recipients of a Federal Pell Grant | D93: Recipients of a Subsidized Stafford Loan who did not receive a Pell Grant | E93: Students who did not receive either a Pell Grant or a subsidized Stafford Loan | F93: Total (sum of 3 columns to the left)
A95: A | B95: Initial 2018 cohort of first-time, full-time, bachelor's (or equivalent) degree-seeking undergraduate students | C95: 115 | D95: 150 | E95: 356 | F95: =SUM(B95:E95) -> 621
A96: B | B96: Of the initial 2018 cohort, how many did not persist and did not graduate for the following reasons: • Deceased • Permanently Disabled • Armed Forces • Foreign Aid Service of the Federal Government • Official church missions • Report Total Allowable Exclusions | C96: 1 | D96: 0 | E96: 0 | F96: =SUM(B96:E96) -> 1
A97: C | B97: Final 2018 cohort, after adjusting for allowable exclusions | C97: =(C95-C96) -> 114 | D97: 150 | E97: 356 | F97: 620
A98: D | B98: Of the initial 2018 cohort, how many completed the program in four years or less (by Aug. 31, 2022) | C98: 82 | D98: 111 | E98: 264 | F98: 457
A99: E | B99: Of the initial 2018 cohort, how many completed the program in more than four years but in five years or less (after Aug. 31, 2022 and by Aug. 31, 2023) | C99: 16 | D99: 14 | E99: 47 | F99: 77
A100: F | B100: Of the initial 2018 cohort, how many completed the program in more than five years but in six years or less (after Aug. 31, 2023 and by Aug. 31, 2024) | C100: 2 | D100: 1 | E100: 3 | F100: 6
A101: G | B101: Total graduating within six years (sum of lines D, E, and F) | C101: =SUM(C98:C100) -> 100 | D101: =SUM(D98:D100) -> 126 | E101: 314 | F101: 540
A102: H | B102: Six-year graduation rate for 2018 cohort (G divided by C) | C102: =C101/C97 -> 88% | D102: 84% | E102: 88% | F102: 87%
B104: Fall 2017 Cohort
C105: Recipients of a Federal Pell Grant | D105: Recipients of a Subsidized Stafford Loan who did not receive a Pell Grant | E105: Students who did not receive either a Pell Grant or a subsidized Stafford Loan | F105: Total (sum of 3 columns to the left)
A107: A | B107: Initial 2017 cohort of first-time, full-time, bachelor's (or equivalent) degree-seeking undergraduate students | C107: 124 | D107: 112 | E107: 307 | F107: =SUM(C107:E107) -> 543
A108: B | B108: Of the initial 2017 cohort, how many did not persist and did not graduate for the following reasons: • Deceased • Permanently Disabled • Armed Forces • Foreign Aid Service of the Federal Government • Official church missions • Report Total Allowable Exclusions | C108: 0 | D108: 0 | E108: 1 | F108: =SUM(C108:E108) -> 1
A109: C | B109: Final 2017 cohort, after adjusting for allowable exclusions | C109: =(C107-C108) -> 124 | D109: 112 | E109: 306 | F109: 542
A110: D | B110: Of the initial 2017 cohort, how many completed the program in four years or less (by Aug. 31, 2021) | C110: 109 | D110: 88 | E110: 245 | F110: 442
A111: E | B111: Of the initial 2017 cohort, how many completed the program in more than four years but in five years or less (after Aug. 31, 2021 and by Aug. 31, 2022) | C111: 4 | D111: 8 | E111: 30 | F111: 42
A112: F | B112: Of the initial 2017 cohort, how many completed the program in more than five years but in six years or less (after Aug. 31, 2022 and by Aug. 31, 2023) | C112: 2 | D112: 2 | E112: 2 | F112: 6
A113: G | B113: Total graduating within six years (sum of lines D, E, and F) | C113: =SUM(C110:C112) -> 115 | D113: 98 | E113: 277 | F113: 490
A114: H | B114: Six-year graduation rate for 2016 cohort (G divided by C) | C114: =C113/C109 -> 93% | D114: 88% | E114: 91% | F114: =F113/F109 -> 90%
B115: For Two-Year Institutions
B116: Please provide data for the 2021 cohort if available. If 2021 cohort data are not available, provide data for the 2020 cohort.
F117: 2021 Cohort | G117: 2020 Cohort
A118: B12 | B118: Initial cohort, total of first-time, full-time degree/certificate-seeking students:
A119: B13 | B119: Of the initial cohort, how many did not persist and did not graduate for the following reasons: • Death • Permanently Disability • Service in the armed forces, • Foreign aid service of the federal government • Official church missions • Report total allowable exclusions
A120: B14 | B120: Final cohort, after adjusting for allowable exclusions: | F120: =F118-F119 -> 0 | G120: 0
A121: B15 | B121: Completers of programs of less than two years duration (total):
A122: B16 | B122: Completers of programs of less than two years within 150 percent of normal time:
A123: B17 | B123: Completers of programs of at least two but less than four years (total):
A124: B18 | B124: Completers of programs of at least two but less than four-years within 150 percent of normal time:
A125: B19 | B125: Total transfers-out (within three years) to other institutions:
A126: B20 | B126: Total transfers to two-year institutions:
A127: B21 | B127: Total transfers to four-year institutions:
B128: B22. Retention Rates
B129: Report for the cohort of all full-time, first-time bachelor’s (or equivalent) degree-seeking undergraduate students who entered in Fall 2023 (or the preceding summer term).
B130: • The initial cohort may be adjusted for students who departed for the following reasons:
B131: * Death * Permanent Disability * Service in the armed forces * Foreign aid service of the federal government * Official church missions * No other adjustments to the initial cohort should be made.
A132: B22 | B132: For the cohort of all full-time bachelor’s (or equivalent) degree-seeking undergraduate students who entered your institution as first-year students in Fall 2023 (or the preceding summer term), what percentage was enrolled at your institution as of the date your institution calculates its official enrollment in Fall 2024. | G132: =478/518 -> 92.28%
G133: 478 / 518

Sheet CDS-C
A1: C. FIRST-TIME, FIRST-YEAR ADMISSION
B2: C1-C2: Applications
A3: C1 | B3: First-time, first-year students: Provide the number of degree-seeking, first-time, first-year students who applied, were admitted, and enrolled (full- or part-time) in Fall 2024.
B5: • Include early decision, early action, and students who began studies during summer in this cohort.
B6: • Applicants should include only those students who fulfilled the requirements for consideration for admission (i.e., who completed actionable applications) and who have been notified of one of the following actions: admission, non-admission, placement on waiting list, or application withdrawn (by applicant or institution).
B7: • Since the total may include students who did not provide gender data, the detail need not sum to the total.
B8: • If your institution collects and reports non-binary gender data, please use the "Another Gender" category.
B9: • Note that recent high school graduates and other students without prior postsecondary experience will still be considered "first-time students" for fall enrollment reporting purposes even if they enrolled in the summer prior to fall enrollment.
B10: • Provide numbers of students for each of the following categories as of the institution’s official fall reporting date or as of October 15, 2024.
B11: First-Time, First-Year Student Applicants | E11: Total
B12: Total first-time, first-year men who applied | E12: 4097
B13: Total first-time, first-year women who applied | E13: 4855
B14: Total first-time, first-year another gender who applied | E14: 13
B15: Total first-time, first-year unknown gender who applied | E15: 3
B17: First-Time, First-Year Student Admits | E17: Total
B18: Total first-time, first-year men who were admitted | E18: 1033
B19: Total first-time, first-year women who were admitted | E19: 1521
B20: Total first-time, first-year another gender who were admitted | E20: 4
B21: Total first-time, first-year unknown gender who were admitted | E21: 0
B23: First-Time, First-Year Student Enrollees by Status | E23: Total
B24: Total full-time, first-time, first-year men who enrolled | E24: 247
B25: Total part-time, first-time, first-year men who enrolled | E25: 0
B26: Total full-time, first-time, first-year women who enrolled | E26: 310
B27: Total part-time, first-time, first-year women who enrolled | E27: 0
B28: Total full-time, first-time, first-year another gender who enrolled | E28: 3
B29: Total part-time, first-time, first-year another gender who enrolled | E29: 0
B30: Total full-time, first-time, first-year unknown gender who enrolled | E30: 0
B31: Total part-time, first-time, first-year unknown gender who enrolled | E31: 0
B33: If available, please provide residency breakdowns for total applicants, admits, and enrolled students: Fall 2024
B34: Please report based on known physical address at time of application.
B36: First-Time, First-Year Student Applicants | E36: Total | F36: In-State | G36: Out-of-State | H36: International | I36: Unknown
B37: Total first-time, first-year who applied | E37: =SUM(E12:E15) -> 8968
B38: Total first-time, first-year who were admitted | E38: =SUM(E18:E21) -> 2558
B39: Total first-time, first-year who enrolled | E39: =SUM(E24:E31) -> 560
A43: C2 | B43: First-time, first-year wait-listed students
B44: Students who met admission requirements but whose final admission was contingent on space availability
D46: Yes | E46: No
B47: Do you have a policy of placing students on a waiting list? | D47: X
B49: If yes, please answer the questions below for Fall 2024 admissions:
B51: WAITING LIST | E51: TOTAL
B52: Number of qualified applicants offered a place on waiting list: | E52: 909
B53: Number accepting a place on the waiting list: | E53: 507
B54: Number of wait-listed students admitted: | E54: 63
B56: Is your waiting list ranked? | D56: Yes | E56: No
B57: If yes, do you release that information to students? | E57: n/a
B58: Do you release that information to school counselors? | E58: n/a
B60: C3-C5: Admission Requirements
A62: C3 | B62: High school completion requirement
B63: Check the appropriate box to identify your high school completion requirement for degree-seeking entering students:
B64: High school diploma is required and GED is accepted
B65: High school diploma is required and GED is not accepted
A66: X | B66: High school diploma or equivalent is not required
A68: C4 | B68: Does your institution require or recommend a general college-preparatory program for degree-seeking students?
B69: Require
A70: X | B70: Recommend
B71: Neither require nor recommend
A73: C5 | B73: Distribution of high school units required and/or recommended. Specify the distribution of academic high school course units required and/or recommended of all or most degree-seeking students using Carnegie units (one unit equals one year of study or its equivalent). If you use a different system for calculating units, please convert.
B74: Distribution of high school units | C74: Units Required | D74: Units Recommended
B75: Total academic units
B76: English | D76: 4
B77: Mathematics | D77: 3
B78: Science | D78: 3
B79: Of these, units that must be lab | D79: 3
B80: Foreign language | D80: 3
B81: Social studies | D81: 3
B82: History | D82: 3
B83: Academic electives
B84: Computer Science
B85: Visual/Performing Arts
B86: Other (specify)
B88: C6-C7: Basis for Selection
A89: C6 | B89: Do you have an open admission policy, under which virtually all secondary school graduates or students with GED equivalency diplomas are admitted without regard to academic record, test scores, or other qualifications? If so, check which applies:
B90: Open admission policy as described above for all students
B91: Open admission policy as described above for most students, but--
B92: selective admission for out-of-state students
B93: selective admission to some programs
B94: other (explain):
A97: C7 | B97: Relative importance of each of the following academic and nonacademic factors in your first-time, first-year, degree-seeking general (not including programs with specific criteria) admissions decisions.
B98: Academic | C98: Very Important | D98: Important | E98: Considered | F98: Not Considered
B99: Rigor of secondary school record | C99: X
B100: Class rank | E100: X
B101: Academic GPA | C101: X
B102: Standardized test scores | E102: X
B103: Application Essay | D103: X
B104: Recommendation(s) | D104: X
B105: Nonacademic | C105: Very Important | D105: Important | E105: Considered | F105: Not Considered
B106: Interview | E106: X
B107: Extracurricular activities | D107: X
B108: Talent/ability | E108: X
B109: Character/personal qualities | D109: X
B110: First generation | E110: X
B111: Alumni/ae relation | E111: X
B112: Geographical residence | E112: X
B113: State residency | E113: X
B114: Religious affiliation/commitment | F114: X
B115: Volunteer work | E115: X
B116: Work experience | E116: X
B117: Level of applicant’s interest
B119: Please provide additional information if the importance of any specific academic or nonacademic factors differ by academic program.
B121: C8: SAT and ACT Policies
B122: Entrance exams
E123: Yes | F123: No
B124: Does your institution make use of SAT or ACT scores in admission decisions for first-time, first-year, degree-seeking applicants? | E124: X
A126: C8A | B126: If yes, place check marks in the appropriate boxes below to reflect your institution’s policies for use in admission for students applying for Fall 2026.
B127: Admission | C127: Required to be considered for admission | D127: Required for some | E127: Recommended | F127: Not required for admission, but considered if submitted | G127: Not considered for admission, even if submitted
B128: SAT or ACT | F128: X
B129: ACT Only
B130: SAT Only
A132: C8B | B132: Has been removed from the CDS.
A134: C8C | B134: Has been removed from the CDS.
A136: C8D | B136: In addition, does your institution use applicants' test scores for academic advising?
A138: X | B138: Yes
B139: No
A141: C8E | B141: Latest date by which SAT or ACT scores must be received for fall-term admission | F141: 2025-01-15
A143: C8F | B143: If necessary, use this space to clarify your test policies (e.g., if tests are recommended for some students, or if tests are not required of some students due to differences by academic program, student academic background, or if other examinations may be considered in lieu of the SAT and ACT): | D143: Submission of ACT or SAT test results is optional. If English is neighrs the native language nor the primary language of instruction, results of an English-proficiency test (IELTS, TOEFL, or Duolingo English Test) are required.
A146: C8G | B146: Please indicate which tests your institution uses for placement (e.g., state tests):
B147: SAT
B148: ACT
B149: AP
B150: CLEP
B151: Institutional Exam
B152: State Exam (specify):
B171: C9-C12: First-time, first-year Profile
B172: Provide information for ALL enrolled, degree-seeking, full-time and part-time, first-time, first-year students enrolled in Fall 2024, including students who began studies during summer, international students/nonresidents, and students admitted under special arrangements.
A174: C9 | B174: Percent and number of first-time, first-year students enrolled in Fall 2024 who submitted national standardized (SAT/ACT) test scores.
B175: • Include information for ALL enrolled, degree-seeking, first-time, first-year students who submitted test scores.
B176: • Do not include partial test scores (e.g., mathematics scores but not critical reading for a category of students) or combine other standardized test results (such as TOEFL) in this item.
B177: • Do not convert SAT scores to ACT scores and vice versa.
B178: • If a student submitted multiple sets of scores for a single test, report this information according to how you use the data. For example:
B179: • If you consider the highest scores from either submission, use the highest combination of scores (e.g., verbal from one submission, math from the other).
B180: • If you average the scores, use the average to report the scores.
C182: Percent | D182: Number
B183: Submitting SAT Scores | C183: 29% | D183: 162
B184: Submitting ACT Scores | C184: 23% | D184: 128
B186: For each assessment listed below, report the score that represents the 25th percentile (the score that 25 percent of the first-time, first-year population scored at or below) and the 75th percentile score (the score that 25 percent scored at or above).
B190: Assessment | C190: 25th Percentile | D190: 50th Percentile | E190: 75th Percentile
B191: SAT Composite | C191: 1360 | D191: 1440 | E191: 1490
B192: SAT Evidence-Based Reading and Writing | C192: 680 | D192: 720 | E192: 750
B193: SAT Math | C193: 670 | D193: 720 | E193: 760
B194: ACT Composite | C194: 29.5 | D194: 32 | E194: 34
B195: ACT Math | C195: 27 | D195: 29 | E195: 32
B196: ACT English | C196: 30 | D196: 34 | E196: 35
B197: ACT Writing
B198: ACT Science | C198: 29 | D198: 31 | E198: 34
B199: ACT Reading | C199: 33 | D199: 35 | E199: 36
B201: Percent of first-time, first-year students with scores in each range:
B203: Score Range | C203: SAT Evidence-Based Reading and Writing | D203: SAT Math
B204: 700-800 | C204: 66.00% | D204: 62.00%
B205: 600-699 | C205: 29.00% | D205: 33.00%
B206: 500-599 | C206: 5.00% | D206: 4.00%
B207: 400-499 | C207: 0.00% | D207: 1.00%
B208: 300-399 | C208: 0.00% | D208: 0.00%
B209: 200-299 | C209: 0.00% | D209: 0.00%
B210: Totals should = 100% | C210: =SUM(C204:C209) -> 100.00% | D210: 100.00%
B212: Score Range | C212: SAT Composite
B213: 1400-1600 | C213: 67.00%
B214: 1200-1399 | C214: 30.00%
B215: 1000-1199 | C215: 3.00%
B216: 800-999 | C216: 0.00%
B217: 600-799 | C217: 0.00%
B218: 400-599 | C218: 0.00%
B219: Totals should = 100% | C219: =SUM(C213:C218) -> 100.00%
B221: Score Range | C221: ACT Composite | D221: ACT English | E221: ACT Math | F221: ACT Reading | G221: ACT Science
B222: 30-36 | C222: 75.00% | D222: 80.00% | E222: 48.00% | F222: 90.00% | G222: 67.00%
B223: 24-29 | C223: 21.00% | D223: 18.00% | E223: 45.00% | F223: 7.00% | G223: 30.00%
B224: 18-23 | C224: 4.00% | D224: 1.00% | E224: 6.00% | F224: 3.00% | G224: 3.00%
B225: 12-17 | C225: 0.00% | D225: 1.00% | E225: 1.00% | F225: 0.00% | G225: 0.00%
B226: 6-11 | C226: 0.00% | D226: 0.00% | E226: 0.00% | F226: 0.00% | G226: 0.00%
B227: Below 6 | C227: 0.00% | D227: 0.00% | E227: 0.00% | F227: 0.00% | G227: 0.00%
B228: Totals should = 100% | C228: =SUM(C222:C227) -> 100.00% | D228: =SUM(D222:D227) -> 100.00% | E228: 100.00% | F228: 100.00% | G228: 100.00%
A229: C10 | B229: Percent of all degree-seeking, first-time, first-year students who had high school class rank within each of the following ranges (report information for those students from whom you collected high school rank information)
B230: Assessment | E230: Percent
B231: Percent in top tenth of high school graduating class | E231: 57%
B232: Percent in top quarter of high school graduating class | E232: 86%
B233: Percent in top half of high school graduating class | E233: 100% | F233: Top half +
B234: Percent in bottom half of high school graduating class | E234: 0% | F234: bottom half = 100%
B235: Percent in bottom quarter of high school graduating class | E235: 0%
B236: Percent of total first-time, first-year students who submitted high school class rank: | E236: 23%
A238: C11 | B238: Percentage of all enrolled, degree-seeking, first-time, first-year students who had high school grade-point averages within each of the following ranges (using 4.0 scale).
B239: * Report information only for those students from whom you collected high school GPA.
B240: * If you are able to report GPA ranges separately for students that also submitted at least one test score versus those who did not submit a test score, please do so in the respective columns. If you are unable to report these data, please report the ranges for all students.
B242: Score Range | D242: Percent (Students who submitted scores) | E242: Percent (Students who did not submit scores) | F242: Percent (All enrolled students)
B243: Percent who had GPA of 4.0
B244: Percent who had GPA between 3.75 and 3.99
B245: Percent who had GPA between 3.50 and 3.74
B246: Percent who had GPA between 3.25 and 3.49
B247: Percent who had GPA between 3.00 and 3.24
B248: Percent who had GPA between 2.50 and 2.99
B249: Percent who had GPA between 2.0 and 2.49
B250: Percent who had GPA between 1.0 and 1.99
B251: Percent who had GPA below 1.0
B252: Totals should = 100% | D252: =SUM(D243:D251) -> 0.00% | E252: 0.00% | F252: =SUM(F243:F251) -> 0.00%
A254: C12 | B254: Average high school GPA of all degree-seeking, first-time, first-year students who submitted GPA: | E254: =SUM(E247:E253) -> 0.00
B255: Percent of total first-time, first-year students who submitted high school GPA: | E255: 0.00%
B257: C13-C20: Admission Policies
A259: C13 | B259: Application Fee
B260: If your institution has waived its application fee for the Fall 2026 admission cycle please select no.
D262: Yes | E262: No
B263: Does your institution have an application fee? | E263: X
B265: Amount of application fee:
... 60 more rows

Sheet CDS-D
A1: D. TRANSFER ADMISSION
B3: D1-D2: Fall Applicants
E4: Yes | F4: No
A5: D1 | B5: Does your institution enroll transfer students? (If no, please skip to Section E) | E5: X
B6: If yes, may transfer students earn advanced standing credit by transferring credits earned from course work completed at other colleges/universities?
A8: D2 | B8: Provide the number of students who applied, were admitted, and enrolled as degree-seeking transfer students in Fall 2024.
B9: If your institution collects and reports non-binary gender data, please use the "Another Gender" category.
B10: Transfer Admission | C10: Applicants | D10: Admitted Applicants | E10: Enrolled Applicants
B11: Men | C11: 80 | D11: 29 | E11: 8
B12: Women | C12: 105 | D12: 24 | E12: 11
B13: Another Gender | C13: 0 | D13: 0 | E13: 0
B14: Unknown | C14: 0 | D14: 0 | E14: 0
B15: Total | C15: =SUM(C11:C12) -> 185 | D15: =SUM(D11:D12) -> 53 | E15: =SUM(E11:E12) -> 19
B17: D3-D11: Application for Admission
A18: D3 | B18: Indicate terms for which transfers may enroll:
A20: X | B20: Fall
B21: Winter
B22: Spring
B23: Summer
E24: Yes | F24: No
A25: D4 | B25: Must a transfer applicant have a minimum number of credits completed or else must apply as an entering first-year student? | E25: X
B26: If yes, what is the minimum number of credits and the unit of measure? | E26: 12 | F26: Credits
A28: D5 | B28: Indicate all items required of transfer students to apply for admission:
B30: Requirements | C30: Required of All | D30: Recommended of All | E30: Recommended of Some | F30: Required of Some | G30: Not Required
B31: High school transcript | C31: X
B32: College transcript(s) | C32: X
B33: Essay or personal statement | C33: X
B34: Interview | G34: X
B35: Standardized test scores | G35: X
B36: Statement of good standing from prior institution(s) | C36: X
A38: D6 | B38: If a minimum high school grade point average is required of transfer applicants, specify (on a 4.0 scale): | E38: n/a
A40: D7 | B40: If a minimum college grade point average is required of transfer applicants, specify (on a 4.0 scale): | E40: n/a
A42: D8 | B42: List any other application requirements specific to transfer applicants:
A45: D9 | B45: List application priority, closing, notification, and candidate reply dates for transfer students. If applications are reviewed on a continuous or rolling basis, place a check mark in the “Rolling admission” column.
A46: D9 | B46: Term | C46: Priority Date | D46: Closing Date | E46: Notification Date | F46: Reply Date | G46: Rolling Admission
A47: D9 | B47: Fall | C47: n/a | D47: 2024-04-01 | E47: 2024-05-04 | F47: 2024-05-25 | G47: n/a
A48: D9 | B48: Winter
A49: D9 | B49: Spring
A50: D9 | B50: Summer
E54: Yes | F54: No
A55: D10 | B55: Does an open admission policy, if reported, apply to transfer students? | F55: X
A57: D11 | B57: Describe additional requirements for transfer admission, if applicable:
B60: D12-D17: Transfer Credit Policies
A61: D12 | B61: Report the lowest grade earned for any course that may be transferred for credit: | D61: C-
E63: Number | F63: Unit Type
A64: D13 | B64: Maximum number of credits or courses that may be transferred from a two-year institution: | E64: 64 | F64: Credit(s)
E66: Number | F66: Unit Type
A67: D14 | B67: Maximum number of credits or courses that may be transferred from a four-year institution: | E67: 64 | F67: Credit(s)
A69: D15 | B69: Minimum number of credits that transfers must complete at your institution to earn an associate degree: | E69: n/a
A71: D16 | B71: Minimum number of credits that transfers must complete at your institution to earn a bachelor’s degree: | E71: 64
A73: D17 | B73: Describe other transfer credit policies:
B76: D18-D22: Military Service Transfer Credit Policies
A77: D18 | B77: Does your institution accept the following military/veteran transfer credits:
E79: Yes | F79: No
B80: American Council on Education (ACE)
B81: College Level Examination Program (CLEP)
B82: DANTES Subject Standardized Tests (DSST)
E84: Number | F84: Unit Type
A85: D19 | B85: Maximum number of credits or courses that may be transferred based on military education evaluated by the American Council on Education (ACE):
E89: Number | F89: Unit Type
A90: D20 | B90: Maximum number of credits or courses that may be transferred based on Department of Defense supported prior learning assessments (College Level Examination Program (CLEP) or DANTES Subject Standardized Tests (DSST)):
E95: Yes | F95: No
A96: D21 | B96: Are the military/veteran credit transfer policies published on your website?
B99: If yes, please provide the URL where the policy can be located:
A102: D22 | B102: Describe other military/veteran transfer credit policies unique to your institution:

Sheet CDS-E
A1: E. ACADEMIC OFFERINGS AND POLICIES
A3: E1 | B3: Special study options: Identify those programs available at your institution. Refer to the glossary for definitions.
B5: Accelerated program
B6: Comprehensive transition and postsecondary program for students with intellectual disabilities
A7: x | B7: Cross-registration
B8: Distance learning
A9: x | B9: Double major
B10: Dual enrollment
B11: English as a Second Language (ESL)
B12: Exchange student program (domestic)
B13: External degree program
A14: x | B14: Honors Program
A15: x | B15: Independent study
A16: x | B16: Internships
B17: Liberal arts/career combination
A18: x | B18: Student-designed major
A19: x | B19: Study abroad
B20: Teacher certification program
A21: x | B21: Undergraduate Research
B22: Weekend college
B23: Other (specify):
A26: E2 | B26: Has been removed from the CDS.
A28: E3 | B28: Areas in which all or most students are required to complete some course work prior to graduation:
A29: x | B29: Arts/fine arts
B30: Computer literacy
A31: x | B31: English (including composition)
A32: x | B32: Foreign languages
B33: History
B34: Physical Education
B35: Humanities
A36: x | B36: Intensive writing
A37: x | B37: Mathematics
B38: Philosophy
A39: x | B39: Sciences (biological or physical)
A40: x | B40: Social science
A41: x | B41: Other (describe):
B42: Internationalism, U.S. Identities and Differences

Sheet CDS-F
A1: F. STUDENT LIFE
A3: F1 | B3: Percentages of first-time, first-year degree-seeking students and degree-seeking undergraduates enrolled in Fall 2024 who fit the following categories:
C4: First-time, first-year students | D4: Undergraduates
B5: Percent who are from out of state (exclude international/nonresidents from the numerator and denominator) | C5: =(443-79)/443 -> 82% | D5: =(1817-360)/1817 -> 80%
B6: Percent of men who join fraternities | C6: 0% | D6: 0%
B7: Percent of women who join sororities | C7: 0% | D7: 0%
B8: Percent who live in college-owned, -operated, or -affiliated housing | C8: 100% | D8: =1225/2138 -> 57%
B9: Percent who live off campus or commute | C9: 0% | D9: 43%
B10: Percent of students age 25 and older | C10: 0% | D10: <1%
B11: Average age of full-time students | C11: 18 | D11: 20
B12: Average age of all students (full- and part-time) | C12: 18 | D12: 20
A14: F2 | B14: Activities offered. Identify those programs available at your institution.
A16: x | B16: Campus Ministries
A17: x | B17: Choral groups
A18: x | B18: Concert band
A19: x | B19: Dance
A20: x | B20: Drama/theater
A21: x | B21: International Student Organization
A22: x | B22: Jazz band
A23: x | B23: Literary magazine
B24: Marching band
A25: x | B25: Model UN
A26: x | B26: Music ensembles
A27: x | B27: Musical theater
B28: Opera
B29: Pep band
A30: x | B30: Radio station
A31: x | B31: Student government
A32: x | B32: Student newspaper
B33: Student-run film society
A34: x | B34: Symphony orchestra
B35: Television station
B36: Yearbook
A38: F3 | B38: ROTC (program offered in cooperation with Reserve Officers' Training Corps)
B39: Programs | C39: Marine Option (for Naval ROTC) | D39: On Campus | E39: At Cooperating Institution | F39: Name of Cooperating Institution
B40: Army ROTC is offered: | E40: Yes | F40: U. of MN - TC
B41: Naval ROTC is offered: | E41: Yes | F41: U. of MN - TC
B42: Air Force ROTC is offered: | E42: Yes | F42: U. of St. Thomas
A44: F4 | B44: Housing: Check all types of college-owned, -operated, or -affiliated housing available for undergraduates at your institution.
A45: x | B45: Coed dorms
B46: Men's dorms
B47: Women's dorms
B48: Apartments for married students
A49: x | B49: Apartments for single students
A50: x | B50: Special housing for disabled students
B51: Special housing for international students
B52: Fraternity/sorority housing
A53: x | B53: Cooperative housing
A54: x | B54: Theme housing
B55: Wellness housing
A56: x | B56: Living Learning Communities
A57: x | B57: Other housing options (specify): Single-gender floors available within Coed dorms

Sheet CDS-G
A1: G. ANNUAL EXPENSES
A3: G0 | B3: Please provide the URL of your institution’s net price calculator:
B4: https://www.macalester.edu/financial-aid/estimate/
B6: Provide 2024-2025 academic year costs of attendance for the following categories that are applicable to your institution.
A8: x | B8: Check here if your institution's 2025-2026 academic year costs of attendance are not available at this time and provide an approximate date (i.e., month/day) when your institution's final 2025-2026 academic year costs of attendance will be available:
B11: 2025-03-01
A13: G1 | B13: Undergraduate full-time tuition, required fees, food and housing
B14: List the typical tuition, required fees, and food and housing for a full-time undergraduate student for the FULL 2025-2026 academic year. (30 semester hours or 45 quarter hours for institutions that derive annual tuition by multiplying credit hour cost by number of credits).
B15: • A full academic year refers to the period of time generally extending from September to June; usually equated to two semesters, two trimesters, three quarters, or the period covered by a four-one-four plan.
B16: • Food and housing is defined as double occupancy and 19 meals per week or the maximum meal plan.
B17: • Required fees include only charges that all full-time students must pay that are not included in tuition (e.g., registration, health, or activity fees.)
B18: • Do not include optional fees (e.g., parking, laboratory use).
A20: G1 | B20: PRIVATE INSTITUTIONS | C20: First-Year | D20: Undergraduates
B21: Tuition* | C21: $67,874 | D21: $67,874
B23: PUBLIC INSTITUTIONS | C23: First-Year | D23: Undergraduates
B24: Tuition: In-district
B25: Tuition: In-state (out-of-district):
B26: Tuition: Out-of-state:
B27: Tuition: Non-resident
B29: FOR ALL INSTITUTIONS | C29: First-Year | D29: Undergraduates
B30: Required Fees: | C30: $230 | D30: $230
B31: Food and housing (on-campus): | C31: =SUM(C32:C33) -> $15,760 | D31: =SUM(D32:D33) -> $15,760
B32: Housing Only (on-campus): | C32: $8,304 | D32: $8,304
B33: Food Only (on-campus meal plan): | C33: $7,456 | D33: $7,456
B35: Comprehensive tuition and food and housing fee (if your college cannot provide separate tuition and food and housing fees):
B37: Other: | C37: *Beginning in 2024-2025, tuition includes required course materials. Visit the Mac Books FAQ for more information: https://www.macalester.edu/macbooks/
D39: Minimum | E39: Maximum
A40: G2 | B40: Number of credits per term a student can take for the stated full-time tuition. | D40: 12 | E40: 18
D42: Yes | E42: No
A43: G3 | B43: Do tuition and fees vary by year of study (e.g., sophomore, junior, senior)? | E43: No
A44: G4 | B44: Do tuition and fees vary by undergraduate instructional program? | E44: No
B45: If yes, what percentage of full-time undergraduates pay more than the tuition and fees reported in G1?
A47: G5 | B47: Provide the estimated expenses for a typical full-time undergraduate student: See Also: https://www.macalester.edu/financial-aid/tuition/
C48: Residents | D48: Commuters (living at home) | E48: Commuters (not living at home)
B49: Books and supplies* | C49: $0 | D49: $0 | E49: $0
B50: Housing only: | C50: Not Applicable | D50: Not Applicable
B51: Food only: | C51: Not Applicable
B52: Food and housing total** | C52: Not Applicable | D52: Not Applicable | E52: $18,564
B53: Transportation:
B54: Other expenses: | C54: $2,270 | D54: $2,270 | E54: $2,270
B55: *Beginning in 2024-2025, tuition includes required course materials. Visit the Mac Books FAQ for more information: https://www.macalester.edu/macbooks/ ** If your college cannot provide separate food and housing figures for commuters not living at home
A57: G6 | B57: Undergraduate per-credit-hour charges (tuition only):
B58: PRIVATE INSTITUTIONS: | C58: =67874/32 -> $2,121
B59: PUBLIC INSTITUTIONS:
B60: In-district:
B61: In-state (out-of-district):
B62: Out-of-state:
B63: NONRESIDENTS: | C63: =67874/32 -> $2,121

Sheet CDS-H
A1: H. FINANCIAL AID
B3: Please refer to the following financial aid definitions when completing Section H.
B5: Awarded aid: The dollar amounts offered to financial aid applicants.
B6: Financial aid applicant: Any applicant who submits any one of the institutionally required financial aid applications/forms, such as the FAFSA.
B7: Indebtedness: Aggregate dollar amount borrowed through any loan program (federal, state, subsidized, unsubsidized, private, etc.; excluding parent loans) while the student was enrolled at an institution. Student loans co-signed by a parent are assumed to be the responsibility of the student and should be included.
B8: Institutional scholarships and grants: Endowed scholarships, annual gifts and tuition funded grants for which the institution determines the recipient.
B9: Financial need: As determined by your institution using the federal methodology and/or your institution's own standards.
B10: Need-based aid: College-funded or college-administered award from institutional, state, federal, or other sources for which a student must have financial need to qualify. This includes both institutional and non-institutional student aid (grants, jobs, and loans).
B11: Need-based scholarship or grant aid: Scholarships and grants from institutional, state, federal, or other sources for which a student must have financial need to qualify.
B12: Need-based self-help aid: Loans and jobs from institutional, state, federal, or other sources for which a student must demonstrate financial need to qualify.
B13: Non-need-based scholarship or grant aid: Scholarships and grants, gifts, or merit-based aid from institutional, state, federal, or other sources (including unrestricted funds or gifts and endowment income) awarded solely on the basis of academic achievement, merit, or any other non-need-based reason. When reporting questions H1 and H2, non-need-based aid that is used to meet need should be counted as need-based aid.
B14: Note: Suggested order of precedence for counting non-need money as need-based:
C15: 1. Non-need institutional grants | D15: 6. Non-need outside grants
C16: 2. Non-need tuition waivers | D16: 7. Non-need student loans
C17: 3. Non-need athletic awards | D17: 8. Non-need parent loans
C18: 4. Non-need federal grants | D18: 9. Non-need work
C19: 5. Non-need state grants
B20: Non-need-based self-help aid: Loans and jobs from institutional, state, or other sources for which a student need not demonstrate financial need to qualify.
B21: Private student loans: A nonfederal loan made by a lender such as a bank, credit union or private lender used to pay for up to the annual cost of education, less any financial aid received.
B22: External scholarships and grants: Scholarships and grants received from outside (private) sources that students bring with them (e.g., Kiwanis, National Merit scholarships). The institution may process paperwork to receive the dollars, but it has no role in determining the recipient or the dollar amount awarded.
B23: Work study and employment: Federal and state work study aid, and any employment packaged by your institution in financial aid awards.
B27: Aid Awarded to Enrolled Undergraduates
A29: H1 | B29: Enter total dollar amounts awarded to enrolled full-time and less than full-time degree-seeking undergraduates (using the same cohort reported in CDS Question B1, “total degree-seeking” undergraduates) in the following categories.
B30: • If the data being reported are final figures for the 2023-2024 academic year (see the next item below), use the 2023-2024 academic year's CDS Question B1 cohort.
B31: • Include aid awarded to international students (i.e., those not qualifying for federal aid).
B32: • Aid that is non-need-based but that was used to meet need should be reported in the need-based aid column.
B33: • For a suggested order of precedence in assigning categories of aid to cover need, see the entry for “non-need-based scholarship or grant aid” on the last page of the definitions section.
E36: 2024-2025 estimated | F36: 2023-2024 Final
B37: Indicate the academic year for which data are reported for items H1, H2, H2A, and H6 below: | E37: ='[1]CDS-H'!$C$66 -> x
B38: Which needs-analysis methodology does your institution use in awarding institutional aid? (Formerly H3)
B40: Federal methodology (FM)
B41: Institutional methodology (IM)
B42: Both FM and IM
B44: Aid Awarded | E44: Need-based (Include non-need-based aid use to meet need.) | F44: Non-need-based (Exclude non-need-based aid use to meet need.)
B45: Scholarships/Grants
B46: Federal | E46: ='[1]CDS-H'!$C$81 -> $2,332,889 | F46: ='[1]CDS-H'!C97 -> $0 | AA46: ='[1]CDS-H'!N81 -> 373
B47: State all states, not only the state in which your institution is located | E47: ='[1]CDS-H'!$C$82 -> $731,614 | F47: ='[1]CDS-H'!C98 -> $0 | AA47: ='[1]CDS-H'!N82 -> 100
B48: Institutional: Endowed scholarships, annual gifts and tuition funded grants, awarded by the college, excluding athletic aid and tuition waivers (which are reported below). | E48: ='[1]CDS-H'!$C$83 -> $66,307,821 | F48: ='[1]CDS-H'!C99 -> $12,193,674 | AA48: ='[1]CDS-H'!N83 -> 1248 | AB48: ='[1]CDS-H'!N99 -> 635
B49: Scholarships/grants from external sources (e.g. Kiwanis, National Merit) not awarded by the college | E49: ='[1]CDS-H'!$C$84 -> $1,211,715 | F49: ='[1]CDS-H'!C100 -> $787,437 | AA49: ='[1]CDS-H'!N84 -> 194 | AB49: ='[1]CDS-H'!N100 -> 63
B50: Total Scholarships/Grants | E50: =SUM(E46:E49) -> $70,584,039 | F50: $12,981,111
B51: Self-Help
B52: Student loans from all sources (excluding parent loans) | E52: ='[1]CDS-H'!$C$87 -> $4,538,923 | F52: ='[1]CDS-H'!$C$103 -> $583,253 | AA52: ='[1]CDS-H'!$N$87 -> 665 | AB52: ='[1]CDS-H'!$N$103 -> 87
B53: Federal Work-Study | E53: ='[1]CDS-H'!$C$88 -> $500,972
B54: State and other (e.g., institutional) work-study/employment (Note: Excludes Federal Work-Study captured above.) | E54: ='[1]CDS-H'!$C$89 -> $4,449,806 | F54: ='[1]CDS-H'!$C$105 -> $177,606 | AA54: ='[1]CDS-H'!$N$89 -> 1175 | AB54: ='[1]CDS-H'!$N$107 -> 48
B55: Total Self-Help | E55: =SUM(E52:E54) -> $9,489,701 | F55: =SUM(F52,F54) -> $760,859
B56: Parent Loans | E56: $0 | F56: ='[1]CDS-H'!$C$107 -> $1,496,518 | AB56: ='[1]CDS-H'!$N$107 -> 48
B57: Tuition Waivers Note: Reporting is optional. Report tuition waivers in this row if you choose to report them. Do not report tuition waivers elsewhere.
B58: Athletic Awards | E58: $0
A60: H2 | B60: Number of Enrolled Students Awarded Aid: List the number of degree-seeking full-time and less-than-full-time undergraduates who applied for and were awarded financial aid from any source.
B61: • Aid that is non-need-based but that was used to meet need should be counted as need- based aid.
B62: • Numbers should reflect the cohort awarded the dollars reported in H1.
B63: • In the chart below, students may be counted in more than one row, and full-time first-year students should also be counted as full-time undergraduates.
C66: Number of Enrolled Students Awarded Aid | D66: First-time Full-time First-year Students | E66: Full-time Undergrad (Incl. First-Year) | F66: Less Than Full-time Undergrad
B67: A | C67: Number of degree-seeking undergraduate students (CDS Item B1 if reporting on Fall 2024 cohort) | D67: ='[1]CDS-H'!C126 -> 560 | E67: ='[1]CDS-H'!C144 -> 2099
B68: B | C68: Number of students in line a who applied for need-based financial aid | D68: ='[1]CDS-H'!C127 -> 357 | E68: ='[1]CDS-H'!C145 -> 1400
B69: C | C69: Number of students in line b who were determined to have financial need | D69: ='[1]CDS-H'!C128 -> 311 | E69: ='[1]CDS-H'!C146 -> 1248
B70: D | C70: Number of students in line c who were awarded any financial aid | D70: ='[1]CDS-H'!C129 -> 311 | E70: ='[1]CDS-H'!C147 -> 1248
B71: E | C71: Number of students in line d who were awarded any need-based scholarship or grant aid | D71: ='[1]CDS-H'!C130 -> 308 | E71: ='[1]CDS-H'!C148 -> 1239
B72: F | C72: Number of students in line d who were awarded any need-based self-help aid | D72: ='[1]CDS-H'!C131 -> 258 | E72: ='[1]CDS-H'!C149 -> 1112
B73: G | C73: Number of students in line d who were awarded any non-need-based scholarship or grant aid | D73: ='[1]CDS-H'!C132 -> 44 | E73: ='[1]CDS-H'!C150 -> 106
B74: H | C74: Number of students in line d whose need was fully met (exclude PLUS loans, unsubsidized loans, and private alternative loans) | D74: ='[1]CDS-H'!C133 -> 230 | E74: ='[1]CDS-H'!C151 -> 743
B75: I | C75: On average, the percentage of need that was met of students who were awarded any need-based aid. Exclude any aid that was awarded in excess of need as well as any resources that were awarded to replace EFC (PLUS loans, unsubsidized loans, and private alternative loans) | D75: ='[1]CDS-H'!$C$135 -> 101% | E75: ='[1]CDS-H'!$C$153 -> 97%
B76: J | C76: The average financial aid package of those in line d. Exclude any resources that were awarded to replace EFC (PLUS loans, unsubsidized loans, and private alternative loans) | D76: ='[1]CDS-H'!C137 -> 66,010 | E76: ='[1]CDS-H'!C155 -> $ 65,170
B77: K | C77: Average need-based scholarship and grant award of those in line e | D77: ='[1]CDS-H'!C138 -> 59,730 | E77: ='[1]CDS-H'!C156 -> $ 56,397
B78: L | C78: Average need-based self-help award (excluding PLUS loans, unsubsidized loans, and private alternative loans) of those in line f | D78: ='[1]CDS-H'!C139 -> 7,406 | E78: ='[1]CDS-H'!C157 -> $ 9,728
B79: M | C79: Average need-based loan (excluding PLUS loans, unsubsidized loans, and private alternative loans) of those in line f who were awarded a need-based loan | D79: ='[1]CDS-H'!C140 -> 4,156 | E79: ='[1]CDS-H'!C158 -> $ 5,863
A81: H2A | B81: Number of Enrolled Students Awarded Non-need-based Scholarships and Grants: List the number of degree-seeking full-time and less-than-full-time undergraduates who had no financial need and who were awarded institutional non-need-based scholarship or grant aid.
B82: • Numbers should reflect the cohort awarded the dollars reported in H1.
B83: • In the chart below, students may be counted in more than one row, and full-time first-year students should also be counted as full-time undergraduates.
C85: Number of Enrolled Students Awarded Non-need-based Scholarships and Grants | D85: First-time Full-time First-year Students | E85: Full-time Undergrad (Incl. First-year.) | F85: Less Than Full-time Undergrad
B86: N | C86: Number of students in line a who had no financial need and who were awarded institutional non-need-based scholarship or grant aid (exclude those who were awarded athletic awards and tuition benefits) | D86: ='[1]CDS-H'!$C$193 -> 199 | E86: ='[1]CDS-H'!$C$202 -> 628
B87: O | C87: Average dollar amount of institutional non-need-based scholarship and grant aid awarded to students in line n | D87: ='[1]CDS-H'!$C$195 -> $ 18,937 | E87: ='[1]CDS-H'!$C$204 -> $ 19,291
B88: P | C88: Number of students in line a who were awarded an institutional non-need-based athletic scholarship or grant | D88: ='[1]CDS-H'!$C$197 -> 0 | E88: ='[1]CDS-H'!$C$206 -> 0
B89: Q | C89: Average dollar amount of institutional non-need-based athletic scholarships and grants awarded to students in line p | D89: ='[1]CDS-H'!$C$199 -> 0 | E89: ='[1]CDS-H'!$C$208 -> 0
C91: Note: These are the graduates and loan types to include and exclude in order to fill out CDS H4 and H5.
C92: Include:
C93: • 2024 undergraduate class: all students who started at your institution as first-time students and received a bachelor's degree between July 1, 2023 and June 30, 2024.
C94: • Only loans made to students who borrowed while enrolled at your institution.
C95: • Co-signed loans.
C96: Exclude
C97: • Students who transferred in.
C98: • Money borrowed at other institutions.
C99: • Parent loans
C100: • Students who did not graduate or who graduated with another degree or certificate (but no bachelor’s degree).
A103: H4 | B103: Provide the number of students in the 2024 undergraduate class who started at your institution as first-time students and received a bachelor's degree between July 1, 2023 and June 30, 2024. Exclude students who transferred into your institution. | F103: ='[1]CDS-H'!$C$236 -> 513
A105: H5. Number and percent of students in class (defined in H4 above) borrowing from federal, non-federal, and any loan sources, and the average (or mean) amount borrowed.
A106: • The “Average per-undergraduate-borrower cumulative principal borrowed,” is designed to provide better information about student borrowing from federal and nonfederal (institutional, state, commercial) sources.
A107: • The numbers, percentages, and averages for each row should be based only on the loan source specified for the particular row. For example, the federal loans average (row b) should only be the cumulative average of federal loans and the private loans average (row e) should only be the cumulative average of private loans.
B108: Source/Type of Loan | D108: Number in the class (defined in H4 above) who borrowed from the types of loans specified in the first column | E108: Percent of the class (defined above) who borrowed from the types of loans specified in the first column (nearest 1%) | F108: Average per-undergraduate-borrower cumulative principal borrowed from the types of loans specified in the first column (nearest $1)
B110: A | C110: Any loan program: Federal Perkins, Federal Stafford Subsidized and Unsubsidized, institutional, state, private loans that your institution is aware of, etc. Include both Federal Direct Student Loans and Federal Family Education Loans. | D110: ='[1]CDS-H'!C252 -> 267 | E110: ='[1]CDS-H'!C260 -> 52.05% | F110: ='[1]CDS-H'!$C268 -> $24,601
B111: B | C111: Federal loan programs: Federal Perkins, Federal Stafford Subsidized and Unsubsidized. Include both Federal Direct Student Loans and Federal Family Education Loans. | D111: ='[1]CDS-H'!C253 -> 215 | E111: ='[1]CDS-H'!C261 -> 41.91% | F111: ='[1]CDS-H'!$C269 -> $18,700
B112: C | C112: Institutional loan programs. | D112: ='[1]CDS-H'!C254 -> 157 | E112: ='[1]CDS-H'!C262 -> 30.60% | F112: ='[1]CDS-H'!$C270 -> $10,207
B113: D | C113: State loan programs. | D113: ='[1]CDS-H'!C255 -> 4 | E113: ='[1]CDS-H'!C263 -> 0.78% | F113: ='[1]CDS-H'!$C271 -> $16,982
B114: E | C114: Private student loans made by a bank or lender. | D114: ='[1]CDS-H'!C256 -> 23 | E114: ='[1]CDS-H'!C264 -> 4.48% | F114: ='[1]CDS-H'!$C272 -> $38,156
B116: Aid to Undergraduate Degree-seeking Nonresidents
C117: • Report numbers and dollar amounts for the same academic year checked in item H1
A119: H6 | B119: Indicate your institution’s policy regarding institutional scholarship and grant aid for undergraduate degree-seeking nonresidents:
A121: ='[1]CDS-H'!$C280 -> x | B121: Institutional need-based scholarship or grant aid is available
A122: ='[1]CDS-H'!$C281 -> x | B122: Institutional non-need-based scholarship or grant aid is available
B123: Institutional scholarship or grant aid is not available
B125: If institutional financial aid is available for undergraduate degree-seeking nonresidents, provide the number of undergraduate degree-seeking nonresidents who were awarded need-based or non-need-based aid: | F125: ='[1]CDS-H'!$C$285 -> 255
B127: Average dollar amount of institutional financial aid awarded to undergraduate degree-seeking nonresidents: | F127: ='[1]CDS-H'!$C$288 -> $60,806
B129: Total dollar amount of institutional financial aid awarded to undergraduate degree-seeking nonresidents: | F129: ='[1]CDS-H'!$C$291 -> $15,505,530
A131: H7 | B131: Check off all financial aid forms nonresident first-year financial aid applicants must submit:
B133: Institution’s own financial aid form
A134: ='[1]CDS-H'!$C$299 -> x | B134: CSS/Financial Aid PROFILE
A135: ='[1]CDS-H'!$C$301 -> x | B135: Other (specify):
B136: ='[1]CDS-H'!$B$302 -> CSS Profile or ISAFA
B138: Process for First-Year Students
A140: H8 | B140: Check off all financial aid forms domestic first-year financial aid applicants must submit:
A142: ='[1]CDS-H'!$C$310 -> x | B142: FAFSA
B143: Institution's own financial aid form
A144: ='[1]CDS-H'!$C$312 -> x | B144: CSS PROFILE
B145: State aid form
A146: x | B146: Noncustodial PROFILE
B147: Business/Farm Supplement
A148: ='[1]CDS-H'!$C$317 -> x | B148: Other (specify):
B149: ='[1]CDS-H'!$B$318 -> Parent tax documents
A151: H9 | B151: Indicate filing dates for first-year students:
C152: Priority date for filing required financial aid forms:
C153: Deadline for filing required financial aid forms: | D153: ='[1]CDS-H'!$C$325 -> 1/22 Regular Decision
C155: No deadline for filing required forms (applications processed on a rolling basis)
A158: H10 | B158: Indicate notification dates for first-year students (answer a or b):
C160: a) Students notified on or about (date):
C161: ='[1]CDS-H'!$C$333 -> 3/16 Regular Decision
C163: b) Students notified on a rolling basis:
C164: Yes
C165: No
C166: If yes, starting date:
A169: H11 | B169: Indicate reply dates:
B170: Students must reply by (date): | D170: ='[1]CDS-H'!$C$347 -> 2024-05-01
B171: or within _______ weeks of notification.
B173: Types of Aid Available
B174: Please check off all types of aid available to undergraduates at your institution:
A175: H12 | B175: Loans
A177: x | B177: Federal Direct Subsidized Loans
A178: x | B178: Federal Direct Unsubsidized Loans
A179: x | B179: Federal Direct PLUS Loans
B180: Federal Nursing Loans
A181: x | B181: State Loans
A182: x | B182: College/university loans from institutional funds
B183: Other (specify):
A186: H13 | B186: Need Based Scholarships and Grants
A188: x | B188: Federal Pell
A189: x | B189: Federal SEOG
A190: x | B190: State scholarships/grants
A191: x | B191: Private scholarships
A192: x | B192: College/university scholarship or grant aid from institutional funds
B193: United Negro College Fund
B194: Federal Nursing Scholarship
B195: Other (specify):
A198: H14 | B198: Check off criteria used in awarding institutional aid. Check all that apply.
D199: Non-Need Based | E199: Need-Based
B200: Academics | D200: x
B201: Alumni affiliation
B202: Art
B203: Athletics
B204: Job skills
B205: ROTC
B206: Leadership
B207: Music/drama
B208: Religious affiliation
B209: State/district residency
A211: H15 | B211: If your institution has recently implemented any major financial aid policy, program, or initiative to make your institution more affordable to incoming students such as replacing loans with grants, or waiving costs for families below a certain income level please provide details below:

Sheet CDS-I
A1: I. INSTRUCTIONAL FACULTY AND CLASS SIZE
A3: I-1. | B3: Please report the number of instructional faculty members in each category for Fall 2024. Include faculty who are on your institution’s payroll on the census date your institution uses for IPEDS/AAUP.
B4: The following definition of full-time instructional faculty is used by the American Association of University Professors (AAUP) in its annual Faculty Compensation Survey (the part time definitions are not used by AAUP). Instructional Faculty is defined as those members of the instructional-research staff whose major regular assignment is instruction, including those with released time for research. Use the chart below to determine inclusions and exclusions:
J5: Full-time | K5: Part-time
B6: A | C6: Instructional faculty in preclinical and clinical medicine, faculty who are not paid (e.g., those who donate their services or are in the military), or research-only faculty, post-doctoral fellows, or pre-doctoral fellows | J6: Exclude | K6: Include only if they teach one or more non-clinical credit courses
B7: B | C7: Administrative officers with titles such as dean of students, librarian, registrar, coach, and the like, even though they may devote part of their time to classroom instruction and may have faculty status | J7: Exclude | K7: Include if they teach one or more non-clinical credit courses
B8: C | C8: Other administrators/staff who teach one or more non-clinical credit courses even though they do not have faculty status | J8: Exclude | K8: Include
B9: D | C9: Undergraduate or graduate students who assist in the instruction of courses, but have titles such as teaching assistant, teaching fellow, and the like | J9: Exclude | K9: Exclude
B10: E | C10: Faculty on sabbatical or leave with pay | J10: Include | K10: Exclude
B11: F | C11: Faculty on leave without pay | J11: Exclude | K11: Exclude
B12: G | C12: Replacement faculty for faculty on sabbatical leave or leave with pay | J12: Exclude | K12: Include
B14: Full-time instructional faculty: faculty employed on a full-time basis for instruction (including those with released time for research)
B15: Part-time instructional faculty: Adjuncts and other instructors being paid solely for part-time classroom instruction. Also includes full-time faculty teaching less than two semesters, three quarters, two trimesters, or two four-month sessions. Employees who are not considered full-time instruction faculty but who teach one or more non-clinical credit courses may be counted as part-time faculty.
B16: Minority faculty: includes faculty who designate themselves as Black, non-Hispanic; American Indian or Alaska Native; Asian, Native Hawaiian or other Pacific Islander, or Hispanic.
B17: Doctorate: includes such degrees as Doctor of Philosophy, Doctor of Education, Doctor of Juridical Science, and Doctor of Public Health in any field such as arts, sciences, education, engineering, business, and public administration. Also includes terminal degrees formerly designated as “first professional,” including dentistry (DDS or DMD), medicine (MD), optometry (OD), osteopathic medicine (DO), pharmacy (DPharm or BPharm), podiatric medicine (DPM), veterinary medicine (DVM), chiropractic (DC or DCM), or law (JD).
B18: Terminal master’s degree: a master’s degree that is considered the highest degree in a field: example, M. Arch (in architecture) and MFA (master of fine arts in art or theater).
A20: I-1. | I20: Full-Time | J20: Part-Time | K20: Total
B21: A | C21: Total number of instructional faculty | I21: 198 | J21: 50 | K21: 248
B22: B | C22: Total number who are members of minority groups | I22: 69 | J22: 12 | K22: 81
B23: C | C23: Total number who are women | I23: 113 | J23: 29 | K23: 142
B24: D | C24: Total number who are men | I24: 85 | J24: 21 | K24: 106
B25: E | C25: Total number who are nonresidents (international) | I25: 9 | J25: 0 | K25: 9
B26: F | C26: Total number with doctorate, or other terminal degree | I26: 180 | J26: 25 | K26: 205
B27: G | C27: Total number whose highest degree is a master’s but not a terminal master’s | I27: 12 | J27: 9 | K27: 21
B28: H | C28: Total number whose highest degree is a bachelor’s | I28: 6 | J28: 14 | K28: 20
B29: I | C29: Total number whose highest degree is unknown or other (Note: Items f, g, h, and i must sum up to item a.) | I29: 0 | J29: 2 | K29: 2
B30: J | C30: Total number in stand-alone graduate/professional programs in which faculty teach virtually only graduate-level students | I30: 0 | J30: 0 | K30: 0
A32: I-2. | B32: Student to Faculty Ratio
B33: Report the Fall 2024 ratio of full-time equivalent students (full-time plus 1/3 part time) to full-time equivalent instructional faculty (full time plus 1/3 part time). In the ratio calculations, exclude both faculty and students in stand-alone graduate or professional programs such as medicine, law, veterinary, dentistry, social work, business, or public health in which faculty teach virtually only graduate level students.
B34: • Do not count undergraduate or graduate student teaching assistants as faculty.
B36: Fall 2024 Student to Faculty ratio | G36: 10 | H36: to 1 | I36: (based on | J36: 214.67 | K36: students
I37: and | J37: 2116.67 | K37: faculty).
A38: I-3. | B38: Undergraduate Class Size
B39: In the table below, please use the following definitions to report information about the size of classes and class sections offered in the Fall 2024 term.
B41: Class Sections: A class section is an organized course offered for credit, identified by discipline and number, meeting at a stated time or times in a classroom or similar setting, and not a subsection such as a laboratory or discussion session. Undergraduate class sections are defined as any sections in which at least one degree-seeking undergraduate student is enrolled for credit. Exclude distance learning classes and noncredit classes and individual instruction such as dissertation or thesis research, music instruction, or one-to-one readings. Exclude students in independent study, co-operative programs, internships, foreign language taped tutor sessions, practicums, and all students in one-on-one classes. Each class section should be counted only once and should not be duplicated because of course catalog cross-listings.
B42: Class Subsections: A class subsection includes any subsection of a course, such as laboratory, recitation, and discussion subsections that are supplementary in nature and are scheduled to meet separately from the lecture portion of the course. Undergraduate subsections are defined as any subsections of courses in which degree-seeking undergraduate students enrolled for credit. As above, exclude noncredit classes and individual instruction such as dissertation or thesis research, music instruction, or one-to-one readings. Each class subsection should be counted only once and should not be duplicated because of cross-listings.
B43: Using the above definitions, please report for each of the following class-size intervals the number of class sections and class subsections offered in Fall 2024. For example, a lecture class with 800 students who met at another time in 40 separate labs with 20 students should be counted once in the “100+” column in the class section column and 40 times under the “20-29” column of the class subsections table.
B45: Number of Class Sections with Undergraduates Enrolled
B47: Undergraduate Class Size (provide numbers)
D48: 2-9 | E48: 10-19 | F48: 20-29 | G48: 30-39 | H48: 40-49 | I48: 50-99 | J48: 100+ | K48: Total
B49: CLASS SECTIONS | D49: 89 | E49: 243 | F49: 123 | G49: 22 | H49: 1 | I49: 1 | J49: 0 | K49: =SUM(D49:J49) -> 479
D51: 2-9 | E51: 10-19 | F51: 20-29 | G51: 30-39 | H51: 40-49 | I51: 50-99 | J51: 100+ | K51: Total
B52: CLASS SUB-SECTIONS | D52: 69 | E52: 55 | F52: 12 | G52: 6 | H52: 0 | I52: 0 | J52: 0 | K52: =SUM(D52:J52) -> 142

Sheet CDS-J
A1: J. Disciplinary areas of DEGREES CONFERRED
A3: J1 | B3: Degrees conferred between July 1, 2023 and June 30, 2024
B4: For each of the following discipline areas, provide the percentage of diplomas/certificates, associate, and bachelor’s degrees awarded. To determine the percentage, use majors, not headcount (e.g., students with one degree but a double major will be represented twice). Calculate the percentage from your institution’s IPEDS Completions by using the sum of 1st and 2nd majors for each CIP code as the numerator and the sum of the Grand Total by 1st Majors and the Grand Total by 2nd major as the denominator. If you prefer, you can compute the percentages using 1st majors only.
B5: Category | C5: Diploma/Certificates | D5: Associate | E5: Bachelor’s | F5: CIP 2020 Categories to Include
B6: Agriculture | F6: 01
B7: Natural resources and conservation | E7: 4.94% | F7: 03
B8: Architecture | F8: 04
B9: Area, ethnic, and gender studies | E9: 1.60% | F9: 05
B10: Communication/journalism | E10: 1.89% | F10: 09
B11: Communication technologies | F11: 10
B12: Computer and information sciences | E12: 7.41% | F12: 11
B13: Personal and culinary services | F13: 12
B14: Education | E14: 1.89% | F14: 13
B15: Engineering | F15: 14
B16: Engineering technologies | F16: 15
B17: Foreign languages, literatures, and linguistics | E17: 8.43% | F17: 16
B18: Family and consumer sciences | F18: 19
B19: Law/legal studies | F19: 22
B20: English | E20: 5.38% | F20: 23
B21: Liberal arts/general studies | F21: 24
B22: Library science | F22: 25
B23: Biological/life sciences | E23: 10.90% | F23: 26
B24: Mathematics and statistics | E24: 5.82% | F24: 27
B25: Military science and military technologies | F25: 28 & 29
B26: Interdisciplinary studies | E26: 13.23% | F26: 30
B27: Parks and recreation | F27: 31
B28: Philosophy and religious studies | E28: 1.74% | F28: 38
B29: Theology and religious vocations | F29: 39
B30: Physical sciences | E30: 3.49% | F30: 40
B31: Science technologies | F31: 41
B32: Psychology | E32: 7.56% | F32: 42
B33: Homeland Security, law enforcement, firefighting, and protective services | F33: 43
B34: Public administration and social services | F34: 44
B35: Social sciences | E35: 17.73% | F35: 45
B36: Construction trades | F36: 46
B37: Mechanic and repair technologies | F37: 47
B38: Precision production | F38: 48
B39: Transportation and materials moving | F39: 49
B40: Visual and performing arts | E40: 4.94% | F40: 50
B41: Health professions and related programs | F41: 51
B42: Business/marketing | F42: 52
B43: History | E43: 3.05% | F43: 54
B44: Other
B45: TOTAL (should = 100%) | C45: =SUM(C6:C44) -> 0.00% | D45: 0.00% | E45: 100.00%

Sheet CDS Definitions
A1: Common Data Set Definitions
A2: ¨ All definitions related to the financial aid section appear at the end of the Definitions document.
A4: ¨ Items preceded by an asterisk (*) represent definitions agreed to among publishers which do not appear on the CDS document but may be present on individual publishers’ surveys.
A6: ¨ Additional guidance for some terms, particularly those common with the IPEDS survey, may be found here: https://surveys.nces.ed.gov/ipeds/public/glossary
A8: *Academic advisement: Plan under which each student is assigned to a faculty member or a trained adviser, who, through regular meetings, helps the student plan and implement immediate and long-term academic and vocational goals.
A9: Accelerated program: Completion of a college program of study in fewer than the usual number of years, most often by attending summer sessions and carrying extra courses during the regular academic term.
A10: Admitted student: Applicant who is offered admission to a degree-granting program at your institution.
A12: *Adult student services: Admission assistance, support, orientation, and other services expressly for adults who have started college for the first time, or who are re-entering after a lapse of a few years.
A13: American Indian or Alaska Native: A person having origins in any of the original peoples of North and South America (including Central America) and maintaining tribal affiliation or community attachment.
A14: Applicant (first-time, first year): An individual who has fulfilled the institution’s requirements to be considered for admission (including payment or waiving of the application fee, if any) and who has been notified of one of the following actions: admission, nonadmission, placement on waiting list, or application withdrawn (by applicant or institution).
A15: Application fee: That amount of money that an institution charges for processing a student’s application for acceptance. This amount is not creditable toward tuition and required fees, nor is it refundable if the student is not admitted to the institution.
A16: Asian: A person having origins in any of the original peoples of the Far East, Southeast Asia, or the Indian subcontinent, including, for example, Cambodia, China, India, Japan, Korea, Malaysia, Pakistan, the Philippine Islands, Thailand, and Vietnam.
A17: Associate degree: An award that normally requires at least two but less than four years of full-time equivalent college work.
A18: Bachelor’s degree: An award (baccalaureate or equivalent degree, as determined by the Secretary of the U.S. Department of Education) that normally requires at least four years but not more than five years of full-time equivalent college-level work. This includes ALL bachelor’s degrees conferred in a five-year cooperative (work-study plan) program. (A cooperative plan provides for alternate class attendance and employment in business, industry, or government; thus, it allows students to combine actual work experience with their college studies.) Also, it includes bachelor’s degrees in which the normal four years of work are completed in three years.
A19: Black or African American: A person having origins in any of the black racial groups of Africa.
A20: Board (charges): Assume average cost for 19 meals per week or the maximum meal plan.
A21: Books and supplies (costs): Average cost of books and supplies. Do not include unusual costs for special groups of students (e.g., engineering or art majors), unless they constitute the majority of students at your institution.
A22: Calendar system: The method by which an institution structures most of its courses for the academic year.
A23: Campus Ministry: Religious student organizations (denominational or nondenominational) devoted to fostering religious life on college campuses. May also refer to Campus Crusade for Christ, an interdenominational Christian organization.
A25: *Career and placement services: A range of services, including (often) the following: coordination of visits of employers to campus; aptitude and vocational testing; interest inventories, personal counseling; help in resume writing, interviewing, launching the job search; listings for those students desiring employment and those seeking permanent positions; establishment of a permanent reference folder; career resource materials.
A26: Carnegie units: One year of study or the equivalent in a secondary school subject.
A27: Certificate: See Postsecondary award, certificate, or diploma.
A28: Class rank: The relative numerical position of a student in his or her graduating class, calculated by the high school on the basis of grade-point average, whether weighted or unweighted.
A29: College-preparatory program: Courses in academic subjects (English, history and social studies, foreign languages, mathematics, science, and the arts) that stress preparation for college or university study.
A30: Common Application: The standard application form distributed by the National Association of Secondary School Principals for a large number of private colleges who are members of the Common Application Group.
A31: *Community service program: Referral center for students wishing to perform volunteer work in the community or participate in volunteer activities coordinated by academic departments.
A32: Commuter: A student who lives off campus in housing that is not owned by, operated by, or affiliated with the college. This category includes students who commute from home and students who have moved to the area to attend college.
A33: Comprehensive transition and postsecondary program for students with intellectual disabilities: Programs designed to support postsecondary students with intellectual disabilities obtain instruction in academic, career and technical, and independent living subjects in preparation for employment.
A34: Clock hour: A unit of measure that represents an hour of scheduled instruction given to students. Also referred to as contact hour.
A35: Continuous basis (for program enrollment): A calendar system classification that is used by institutions that enroll students at any time during the academic year. For example, a cosmetology school or a word processing school might allow students to enroll and begin studies at various times, with no requirement that classes begin on a certain date.
A36: Cooperative education program: A program that provides for alternate class attendance and employment in business, industry, or government.
A37: Cooperative housing: College-owned, -operated, or -affiliated housing in which students share food and housing expenses and participate in household chores to reduce living expenses.
A38: *Counseling service: Activities designed to assist students in making plans and decisions related to their education, career, or personal development.
A39: Credit: Recognition of attendance or performance in an instructional activity (course or program) that can be applied by a recipient toward the requirements for a degree, diploma, certificate, or recognized postsecondary credential.
A40: Credit course: A course that, if successfully completed, can be applied toward the number of courses required for achieving a degree, diploma, certificate, or other recognized postsecondary credential.
A41: Credit hour: A unit of measure representing an hour (50 minutes) of instruction over a 15-week period in a semester or trimester system or a 10-week period in a quarter system. It is applied toward the total number of hours needed for completing the requirements of a degree, diploma, certificate, or recognized postsecondary credential.
A42: Cross-registration: A system whereby students enrolled at one institution may take courses at another institution without having to apply to the second institution.
A43: Deferred admission: The practice of permitting admitted students to postpone enrollment, usually for a period of one academic term or one year.
A44: Degree: An award conferred by a college, university, or other postsecondary education institution as official recognition for the successful completion of a program of studies.
A45: Degree-seeking students: Students enrolled in courses for credit who are recognized by the institution as seeking a degree or recognized postsecondary credential. At the undergraduate level, this is intended to include students enrolled in vocational or occupational programs.
A46: *Developmental services: Instructional courses designed for students deficient in the general competencies necessary for a regular postsecondary curriculum and educational setting.
A47: Differs by program (calendar system): A calendar system classification that is used by institutions that have occupational/vocational programs of varying length. These schools may enroll students at specific times depending on the program desired. For example, a school might offer a two-month program in January, March, May, September, and November; and a three-month program in January, April, and October.
A48: Diploma: See Postsecondary award, certificate, or diploma.
A49: Distance learning: An option for earning course credit at off-campus locations via cable television, internet, satellite classes, videotapes, correspondence courses, or other means.
A50: Doctor’s degree-research/scholarship: A Ph.D. or other doctor's degree that requires advanced work beyond the master’s level, including the preparation and defense of a dissertation based on original research, or the planning and execution of an original project demonstrating substantial artistic or scholarly achievement. Some examples of this type of degree may include Ed.D., D.M.A., D.B.A., D.Sc., D.A., or D.M, and others, as designated by the awarding institution.
A51: Doctor’s degree-professional practice: A doctor’s degree that is conferred upon completion of a program providing the knowledge and skills for the recognition, credential, or license required for professional practice. The degree is awarded after a period of study such that the total time to the degree, including both pre-professional and professional preparation, equals at least six full-time equivalent academic years. Some of these degrees were formerly classified as “first-professional” and may include: Chiropractic (D.C. or D.C.M.); Dentistry (D.D.S. or D.M.D.); Law (L.L.B. or J.D.); Medicine (M.D.); Optometry (O.D.); Osteopathic Medicine (D.O); Pharmacy (Pharm.D.); Podiatry (D.P.M., Pod.D., D.P.); or, Veterinary Medicine (D.V.M.), and others, as designated by the awarding institution.
A52: Doctor’s degree-other: A doctor’s degree that does not meet the definition of a doctor’s degree - research/scholarship or a doctor’s degree - professional practice.
A53: Double major: Program in which students may complete two undergraduate programs of study simultaneously.
A54: Dual enrollment: Refers to high school students enrolled in college courses for credit. In accordance with IPEDS, student performance is recorded on a college transcript and postsecondary credit is awarded for a passing grade in the course. Dual enrollment includes: All postsecondary courses, independent of course delivery mode, course location, course instructor, whether secondary credit is also offered, and whether the student enrolls through a formal state/local program or enrolls outside a formal state/local program. Dual enrollment excludes: Credit-by-exam models such as Advanced Placement (AP) and International Baccalaureate (IB) in which the student is not enrolled in a postsecondary institution.
A55: Early action plan: An admission plan that allows students to apply and be notified of an admission decision well in advance of the regular notification dates. If admitted, the candidate is not committed to enroll; the student may reply to the offer under the college’s regular reply policy.
A56: Early admission: A policy under which students who have not completed high school are admitted and enroll full time in college, usually after completion of their junior year.
A57: Early decision plan: A plan that permits students to apply and be notified of an admission decision (and financial aid offer if applicable) well in advance of the regular notification date. Applicants agree to accept an offer of admission and, if admitted, to withdraw their applications from other colleges. There are three possible decisions for early decision applicants: admitted, denied, or not admitted but forwarded for consideration with the regular applicant pool, without prejudice.
A58: English as a Second Language (ESL): A course of study designed specifically for students whose native language is not English.
A59: Exchange student program-domestic: Any arrangement between a student and a college that permits study for a semester or more at another college in the United States without extending the amount of time required for a degree. See also Study abroad.
A60: External degree program: A program of study in which students earn credits toward a degree through independent study, college courses, proficiency examinations, and personal experience. External degree programs require minimal or no classroom attendance.
A61: Extracurricular activities (as admission factor): Special consideration in the admissions process given for participation in both school and nonschool-related activities of interest to the college, such as clubs, hobbies, student government, athletics, performing arts, etc.
A62: First-time student: A student attending any institution for the first time at the level enrolled. Includes students enrolled in the fall term who attended a postsecondary institution for the first time at the same level in the prior summer term. Also includes students who entered with advanced standing (college credit earned before graduation from high school).
A63: First-time, first-year student: A student attending any institution for the first time at the undergraduate level. Includes students enrolled in the fall term who attended college for the first time in the prior summer term. Also includes students who entered with advanced standing (college credits earned before graduation from high school).
A64: First-year student: A student who has completed less than the equivalent of 1 full year of undergraduate work; that is, less than 30 semester hours (in a 120-hour degree program) or less than 900 clock hours.
A65: Food and housing (charges)—on campus: Assume double occupancy in institutional housing and 19 meals per week (or maximum meal plan).
A66: Full-time student (undergraduate): A student enrolled for 12 or more semester credits, 12 or more quarter credits, or 24 or more clock hours a week each term.
A67: Geographical residence (as admission factor): Special consideration in the admission process given to students from a particular region, state, or country of residence.
A68: Grade-point average (academic high school GPA): The sum of grade points a student has earned in secondary school divided by the number of courses taken. The most common system of assigning numbers to grades counts four points for an A, three points for a B, two points for a C, one point for a D, and no points for an E or F. Unweighted GPA’s assign the same weight to each course. Weighting gives students additional points for their grades in advanced or honors courses.
A69: Graduate student: A student who holds a bachelor’s or equivalent, and is taking courses at the post-baccalaureate level.
A70: *Health services: Free or low cost on-campus primary and preventive health care available to students.
A71: High school diploma or recognized equivalent: A document certifying the successful completion of a prescribed secondary school program of studies, or the attainment of satisfactory scores on the Tests of General Educational Development (GED), or another state-specified examination.
A72: Hispanic or Latino: A person of Mexican, Puerto Rican, Cuban, South or Central American, or other Spanish culture or origin, regardless of race.
A73: Honors program: Any special program for very able students offering the opportunity for educational enrichment, independent study, acceleration, or some combination of these.
A74: Independent study: Academic work chosen or designed by the student with the approval of the department concerned, under an instructor’s supervision, and usually undertaken outside of the regular classroom structure.
A75: In-state tuition: The tuition charged by institutions to those students who meet the state’s or institution’s residency requirements.
A76: International student: See Nonresident.
A77: International student group: Student groups that facilitate cultural dialogue, support a diverse campus, assist international students in acclimation and creating a social network.
A78: Internship: Any short-term, supervised work experience usually related to a student’s major field, for which the student earns academic credit. The work can be full- or part-time, on- or off-campus, paid or unpaid.
A79: *Learning center: Center offering assistance through tutors, workshops, computer programs, or audiovisual equipment in reading, writing, math, and skills such as taking notes, managing time, taking tests.
A81: *Legal services: Free or low cost legal advice for a range of issues (personal and other).
A82: Liberal arts/career combination: Program in which a student earns undergraduate degrees in two separate fields, one in a liberal arts major and the other in a professional or specialized major, whether on campus or through cross‑registration.
A83: Living learning community: Residential programs that allow students to interact with students who share common interests. In addition to living together, students may also participate in shared courses, special events, and group service projects.
A84: Master's degree: An award that requires the successful completion of a program of study of generally one or two full-time equivalent academic years of work beyond the bachelor's degree. Some of these degrees, such as those in Theology (M.Div., M.H.L./Rav) that were formerly classified as "first-professional", may require more than two full-time equivalent academic years of work.
A85: Minority affiliation (as admission factor): Special consideration in the admission process for members of designated racial/ethnic minority groups.
A86: *Minority student center: Center with programs, activities, and/or services intended to enhance the college experience of students of color.
A88: Model United Nations: A simulation activity focusing on conflict resolution, globalization, and diplomacy. Assuming roles as foreign ambassadors and “delegates,” students conduct research, engage in debate, draft resolutions, and may participate in a national Model UN conference.
A90: Native Hawaiian or Other Pacific Islander: A person having origins in any of the original peoples of Hawaii, Guam, Samoa, or other Pacific Islands.
A91: *New student orientation: Orientation addressing the academic, social, emotional, and intellectual issues involved in beginning college. May be a few hours or a few days in length; at some colleges, there is a fee.
A92: Nonresident: A person who is not a citizen or national of the United States and who is in this country on a visa or temporary basis and does not have the right to remain indefinitely.
A93: *On-campus day care: Licensed day care for students’ children (usually age 3 and up); usually for a fee.
A94: Open admission: Admission policy under which virtually all secondary school graduates or students with GED equivalency diplomas are admitted without regard to academic record, test scores, or other qualifications.
A95: Other expenses (costs): Include average costs for clothing, laundry, entertainment, medical (if not a required fee), and furnishings.
A96: Out-of-state tuition: The tuition charged by institutions to those students who do not meet the institution’s or state’s residency requirements.
A97: Outside a dual enrollment program: High school students who simply enroll in credit courses through your institution and are treated as regularly enrolled college students.
A98: Part-time student (undergraduate): A student enrolled for fewer than 12 credits per semester or quarter, or fewer than 24 clock hours a week each term.
A99: Permanent Resident or other eligible non-citizen: A person who is not a citizen or national of the United States and who has been admitted as a legal immigrant for the purpose of obtaining permanent resident status (and who holds either a registration card [Form I-551 or I-151], a Temporary Resident Card [Form I-688], or an Arrival-Departure Record [Form I-94] with a notation that conveys legal immigrant status, such as Section 207 Refugee, Section 208 Asylee, Conditional Entrant Parolee or Cuban-Haitian).
A100: *Personal counseling: One-on-one or group counseling with trained professionals for students who want to explore personal, educational, or vocational issues.
A101: Post-baccalaureate certificate: An award that requires completion of an organized program of study requiring 18 credit hours beyond the bachelor’s; designed for persons who have completed a baccalaureate degree but do not meet the requirements of academic degrees carrying the title of master.
A102: Post-master’s certificate: An award that requires completion of an organized program of study of 24 credit hours beyond the master’s degree but does not meet the requirements of academic degrees at the doctoral level.
A103: Postsecondary award, certificate, or diploma: Includes the following three IPEDS definitions for postsecondary awards, certificates, and diplomas of varying durations and credit/contact/clock hour requirements:
A105: Less Than 1 Academic Year: Requires completion of an organized program of study at the postsecondary level (below the baccalaureate degree) in less than 1 academic year (2 semesters or 3 quarters) or in less than 900 clock hours by a student enrolled full-time.
A107: At Least 1 But Less Than 2 Academic Years: Requires completion of an organized program of study at the postsecondary level (below the baccalaureate degree) in at least 1 but less than 2 full-time equivalent academic years, or designed for completion in at least 30 but less than 60 credit hours, or in at least 900 but less than 1,800 clock hours.
A109: At Least 2 But Less Than 4 Academic Years: Requires completion of an organized program of study at the postsecondary level (below the baccalaureate degree) in at least 2 but less than 4 full-time equivalent academic years, or designed for completion in at least 60 but less than 120 credit hours, or in at least 1,800 but less than 3,600 clock hours.
A111: Private institution: An educational institution controlled by a private individual(s) or by a nongovernmental agency, usually supported primarily by other than public funds, and operated by other than publicly elected or appointed officials.
A112: Private for-profit institution: A private institution in which the individual(s) or agency in control receives compensation, other than wages, rent, or other expenses for the assumption of risk.
A113: Private nonprofit institution: A private institution in which the individual(s) or agency in control receives no compensation, other than wages, rent, or other expenses for the assumption of risk. These include both independent nonprofit schools and those affiliated with a religious organization.
A114: Proprietary institution: See Private for-profit institution.
A115: Public institution: An educational institution whose programs and activities are operated by publicly elected or appointed school officials, and which is supported primarily by public funds.
A116: Quarter calendar system: A calendar system in which the academic year consists of three sessions called quarters of about 12 weeks each. The range may be from 10 to 15 weeks. There may be an additional quarter in the summer.
A117: Race/ethnicity: Category used to describe groups to which individuals belong, identify with, or belong in the eyes of the community. The categories do not denote scientific definitions of anthropological origins. A person may be counted in only one group.
A118: Race/ethnicity unknown: Category used to classify students or employees whose race/ethnicity is not known and whom institutions are unable to place in one of the specified racial/ethnic categories.
A119: Recognized Postsecondary Credential: Includes both Title IV eligible degrees, certificates, and other recognized postsecondary credentials. Any credential that is received after completion of a program that is eligible for Title IV federal student aid. Credentials that are awarded to recognize an individual’s attainment of measurable technical or industry/occupational skills necessary to obtain employment or advance within an industry occupation. (Generally based on standards developed or endorsed by employers or industry associations).
A120: Religious affiliation/commitment (as admission factor): Special consideration given in the admission process for affiliation with a certain church or faith/religion, commitment to a religious vocation, or observance of certain religious tenets/lifestyle.
A121: *Religious counseling: One-on-one or group counseling with trained professionals for students who want to explore religious problems or issues.
A122: Required fees: Fixed sum charged to students for items not covered by tuition and required of such a large proportion of all students that the student who does NOT pay is the exception. Do not include application fees or optional fees such as lab fees or parking fees.
A123: Secondary school record (as admission factor): Information maintained by the secondary school that may include such things as the student’s high school transcript, class rank, GPA, and teacher and counselor recommendations.
A124: Semester calendar system: A calendar system that consists of two semesters during the academic year with about 16 weeks for each semester of instruction. There may be an additional summer session.
A125: Student-designed major: A program of study based on individual interests, designed with the assistance of an adviser.
A126: Study abroad: Any arrangement by which a student completes part of the college program studying in another country. Can be at a campus abroad or through a cooperative agreement with some other U.S. college or an institution of another country.
A127: *Summer session: A summer session is shorter than a regular semester and not considered part of the academic year. It is not the third term of an institution operating on a trimester system or the fourth term of an institution operating on a quarter calendar system. The institution may have 2 or more sessions occurring in the summer months. Some schools, such as vocational and beauty schools, have year-round classes with no separate summer session.
A128: Talent/ability (as admission factor): Special consideration given to students with demonstrated talent/abilities in areas of interest to the institution (e.g., sports, the arts, languages, etc.).
A129: Teacher certification program: Program designed to prepare students to meet the requirements for certification as teachers in elementary, middle/junior high, and secondary schools.
A130: Transfer applicant: An individual who has fulfilled the institution’s requirements to be considered for admission (including payment or waiving of the application fee, if any) and who has previously attended another college or university and earned college-level credit.
A132: Transfer student: A student entering the institution for the first time but known to have previously attended a postsecondary institution at the same level (e.g., undergraduate). The student may transfer with or without credit.
A133: Transportation (costs): Assume two round trips to student’s hometown per year for students in institutional housing or daily travel to and from your institution for commuter students.
A134: Trimester calendar system: An academic year consisting of 3 terms of about 15 weeks each.
A135: Tuition: Amount of money charged to students for instructional services. Tuition may be charged per term, per course, or per credit.
A137: *Tutoring: May range from one-on-one tutoring in specific subjects to tutoring in an area such as math, reading, or writing. Most tutors are college students; at some colleges, they are specially trained and certified.
A139: Unit: a standard of measurement representing hours of academic instruction (e.g., semester credit, quarter credit, clock hour).
A140: Undergraduate: A student enrolled in a four- or five-year bachelor’s degree program, an associate degree program, or a vocational or technical program below the baccalaureate.
A141: Unduplicated Count of High School Students Enrolled for Credit: Include all high school students enrolled in college courses for credit within or outside of a dual enrollment program.
A142: Undergraduate Research: Opportunities offered to undergraduate students to make original contributions in an academic discipline via the exploration of a specific research topic. Research opportunities may or may not be associated with a specific course or earn credit.
A143: *Veteran’s counseling: Helps veterans and their dependents obtain benefits for their selected program and provides certifications to the Veteran’s Administration. May also provide personal counseling on the transition from the military to a civilian life.
A144: *Visually impaired: Any person whose sight loss is not correctable and is sufficiently severe as to adversely affect educational performance.
A145: Volunteer work (as admission factor): Special consideration given to students for activity done on a volunteer basis (e.g., tutoring, hospital care, working with the elderly or disabled) as a service to the community or the public in general.
A146: Wait list: List of students who meet the admission requirements but will only be offered a place in the class if space becomes available.
A147: Weekend college: A program that allows students to take a complete course of study and attend classes only on weekends.
A148: White: A person having origins in any of the original peoples of Europe, the Middle East, or North Africa.
A149: Within a dual enrollment program: Program within an organized system with special guidelines that allows high school students to take college-level courses. The guidelines might have to do with entrance or eligibility requirements, funding, limits on course taking, etc.
A150: *Women’s center: Center with programs, academic activities, and/or services intended to promote an understanding of the evolving roles of women.
A151: Work experience (as admission factor): Special consideration given to students who have been employed prior to application, whether for relevance to major, demonstration of employment-related skills, or as explanation of student’s academic and extracurricular record.
A154: Financial Aid Definitions
A156: External scholarships and grants: Scholarships and grants received from outside (private) sources that students bring with them (e.g., Kiwanis, National Merit scholarships). The institution may process paperwork to receive the dollars, but it has no role in determining the recipient or the dollar amount awarded.
A158: Financial aid applicant: Any applicant who submits any one of the institutionally required financial aid applications/forms, such as the FAFSA.
A160: Indebtedness: Aggregate dollar amount borrowed through any loan program (federal, state, subsidized, unsubsidized, private, etc.; excluding parent loans) while the student was enrolled at an institution. Student loans co-signed by a parent are assumed to be the responsibility of the student and should be included.
A162: Institutional scholarships and grants: Endowed scholarships, annual gifts and tuition funded grants for which the institution determines the recipient.
A164: Financial need: As determined by your institution using the federal methodology and/or your institution's own standards.
A166: Need-based aid: College-funded or college-administered award from institutional, state, federal, or other sources for which a student must have financial need to qualify. This includes both institutional and non-institutional student aid (grants, jobs, and loans).
A168: Need-based scholarship or grant aid: Scholarships and grants from institutional, state, federal, or other sources for which a student must have financial need to qualify.
A170: Need-based self-help aid: Loans and jobs from institutional, state, federal, or other sources for which a student must demonstrate financial need to qualify.
A172: Non-need-based scholarship or grant aid: Scholarships and grants, gifts, or merit-based aid from institutional, state, federal, or other sources (including unrestricted funds or gifts and endowment income) awarded solely on the basis of academic achievement, merit, or any other non-need-based reason. When reporting questions H1 and H2, non-need-based aid that is used to meet need should be counted as need-based aid.
A174: Note: Suggested order of precedence for counting non-need money as need-based:
A177: 1. Non-need institutional grants
A178: 2. Non-need tuition waivers
A179: 3. Non-need athletic awards
A180: 4. Non-need federal grants
A181: 5. Non-need state grants
A182: 6. Non-need outside grants
A183: 7. Non-need student loans
A184: 8. Non-need parent loans
A185: 9. Non-need work
A188: Non-need-based self-help aid: Loans and jobs from institutional, state, or other sources for which a student need not demonstrate financial need to qualify.
A190: Work study and employment: Federal and state work study aid, and any employment packaged by your institution in financial aid awards.
